fUSD/lending_fUSD_20260412
["ID","MTS","AMOUNT","RATE_DAILY","PERIOD"]
[420338352,1775997036183,-335.0,0.0002,2]
[420338353,1775997036194,-210.120729,0.0002,2]
[420338354,1775997036218,-1453.0,0.0002004,7]
[420338355,1775997036231,-303.14,0.00020061,2]
[420338356,1775997036246,-208.2629,0.000201,2]
[420338357,1775997036265,-622.0,0.00020654,2]
[420338358,1775997036278,-1047.0,0.00020654,2]
[420338359,1775997036292,-539.0,0.000207,7]
[420338360,1775997036306,-295.0,0.00021,2]
[420338361,1775997036321,-439.0,0.00021,2]
[420338362,1775997036334,-367.66738292,0.00021,2]
[420338363,1775997036348,-356.33261708,0.00021,2]
[420338364,1775997036363,-156.0,0.00021,2]
[420338365,1775997036376,-240.0,0.00021,2]
[420338366,1775997036387,-504.0,0.00021,2]
[420338367,1775997036398,-343.0,0.00021,2]
[420338368,1775997036412,-335.0,0.00021,2]
[420338369,1775997036426,-814.99534764,0.00021087,2]
[420338370,1775997036436,-222.3904,0.000212,2]
[420338371,1775997036448,-187.21,0.00021798,2]
[420338372,1775997036457,-5000.0,0.00021918,2]
[420338373,1775997036469,-150.0,0.00021918,2]
[420338374,1775997036480,-2000.0,0.00021938,2]
[420338375,1775997036490,-295.0,0.00022,2]
[420338376,1775997036499,-439.0,0.00022,2]
[420338377,1775997036509,-724.0,0.00022,2]
[420338378,1775997036518,-156.0,0.00022,2]
[420338379,1775997036529,-240.0,0.00022,2]
[420338380,1775997036539,-504.0,0.00022,2]
[420338381,1775997036549,-343.0,0.00022,2]
[420338382,1775997036559,-335.0,0.00022,2]
[420338383,1775997036570,-2000.0,0.000221,2]
[420338384,1775997036579,-2213.46,0.00022332,30]
[420338385,1775997036588,-166.66,0.00022397,30]
[420338386,1775997036598,-237.4763,0.000224,2]
[420338387,1775997036607,-1890.2,0.00022428,2]
[420338388,1775997036616,-250.0,0.00022466,2]
[420338389,1775997036626,-1112.0,0.00022592,5]
[420338390,1775997036929,-1111.0,0.00022868,5]
[420338391,1775997036949,-166.66,0.00022868,30]
[420338392,1775997036958,-487.0,0.00022868,2]
[420338393,1775997036967,-487.0,0.00022868,2]
[420338394,1775997036979,-487.0,0.00022868,2]
[420338395,1775997036996,-487.0,0.00022868,2]
[420338396,1775997037005,-487.0,0.00022868,2]
[420338397,1775997037014,-487.0,0.00022868,2]
[420338398,1775997037027,-487.0,0.00022868,2]
[420338399,1775997037038,-821.72,0.00022868,2]
[420338400,1775997037050,-295.0,0.00023,2]
[420338401,1775997037059,-439.0,0.00023,2]
[420338402,1775997037072,-724.0,0.00023,2]
[420338403,1775997037082,-156.0,0.00023,2]
[420338404,1775997037097,-240.0,0.00023,2]
[420338405,1775997037107,-504.0,0.00023,2]
[420338406,1775997037117,-343.0,0.00023,2]
[420338407,1775997037127,-335.0,0.00023,2]
[420338408,1775997037142,-350.0,0.00023014,2]
[420338409,1775997037154,-166.66,0.0002334,30]
[420338410,1775997037163,-253.5855,0.000235,2]
[420338411,1775997037177,-450.0,0.00023562,2]
[420338412,1775997037188,-150.0,0.00023628,2]
[420338413,1775997037200,-622.0,0.00023654,2]
[420338414,1775997037210,-1047.0,0.00023654,2]
[420338415,1775997037229,-814.99534764,0.00023657,2]
[420338416,1775997037242,-166.66,0.00023811,30]
[420338417,1775997037252,-200.0,0.00023911,2]
[420338418,1775997037273,-2000.0,0.00023932,2]
[420338419,1775997037289,-200.0,0.00023968,2]
[420338420,1775997037299,-295.0,0.00024,2]
[420338421,1775997037321,-439.0,0.00024,2]
[420338422,1775997037333,-724.0,0.00024,2]
[420338423,1775997037343,-161.0,0.00024,2]
[420338424,1775997037358,-240.0,0.00024,2]
[420338425,1775997037380,-504.0,0.00024,2]
[420338426,1775997037393,-343.0,0.00024,2]
[420338427,1775997037419,-335.0,0.00024,2]
[420338428,1775997037429,-550.0,0.0002411,2]
[420338429,1775997037445,-2819.67,0.00024174,2]
[420338430,1775997037465,-166.66,0.00024283,30]
[420338431,1775997037482,-651.39,0.00024425,2]
[420338432,1775997037500,-270.7875,0.000247,2]
[420338433,1775997037521,-166.66,0.00024754,30]
[420338434,1775997037555,-208.13,0.00024755,2]
[420338435,1775997037613,-1577.88,0.00024819,2]
[420338436,1775997037688,-299.0,0.00025,2]
[420338437,1775997037716,-454.0,0.00025,2]
[420338438,1775997037736,-724.0,0.00025,2]
[420338439,1775997037783,-259.0,0.00025,2]
[420338440,1775997037862,-523.0,0.00025,2]
[420338441,1775997037947,-359.68463616,0.00025,2]
[420338442,1775997037996,-342.13788593,0.00025,2]
[420338443,1775997038010,-150.0,0.00025,2]
[420338444,1775997038026,-150.0,0.00025,2]
[420338445,1775997038052,-150.0,0.00025,2]
[420338446,1775997038070,-1000.0,0.00025056,2]
[420338447,1775997038094,-208.13,0.00025374,2]
[420338448,1775997038108,-221.15,0.000255,2]
[420338449,1775997038129,-289.1564,0.000258,2]
[420338450,1775997038139,-441.39660791,0.000258,2]
[420338452,1775997038206,-1558.60339209,0.000258,2]
[420338453,1775997038218,-152.29806367,0.00025847,2]
[420338454,1775997038228,-192.98025,0.00025909,2]
[420338455,1775997038238,-192.98025,0.00025957,2]
[420338456,1775997038249,-1102.65918487,0.0002598,5]
[420338457,1775997038259,-1114.10313573,0.0002598,5]
[420338458,1775997038269,-1051.96468542,0.0002598,5]
[420338459,1775997038281,-1061.36078225,0.0002598,5]
[420338460,1775997038291,-1021.16267245,0.0002598,5]
[420338461,1775997038301,-1011.59102255,0.0002598,5]
[420338462,1775997038312,-1147.58708654,0.0002598,5]
[420338463,1775997038322,-1034.09782827,0.0002598,5]
[420338464,1775997038333,-500.0,0.00025992,2]
[420338465,1775997038343,-500.0,0.00025992,2]
[420338466,1775997038353,-208.13,0.00025993,2]
[420338467,1775997038365,-814.99534764,0.00026227,2]
[420338468,1775997038378,-1127.06,0.0002643,2]
[420338469,1775997038389,-208.13,0.00026612,2]
[420338470,1775997038398,-622.0,0.00026654,2]
[420338471,1775997038413,-1047.0,0.00026654,2]
[420338472,1775997038423,-283.345,0.00026849,2]
[420338473,1775997038433,-187.21,0.00026884,2]
[420338475,1775997038443,-308.7713,0.00027,2]
[420338477,1775997038456,-509.0,0.00027137,2]
[420338478,1775997038466,-153.83,0.00027178,2]
[420338479,1775997038477,-208.13,0.00027231,2]
[420338480,1775997038487,-1000.0,0.00027397,20]
[420338481,1775997038500,-3443.82,0.00027397,10]
[420338482,1775997038510,-150.0,0.00027397,5]
[420338483,1775997038520,-150.07,0.000274,2]
[420338484,1775997038530,-250.0,0.00027945,5]
[420338485,1775997038547,-160.0,0.00028,2]
[420338486,1775997038557,-329.7168,0.000281,2]
[420338487,1775997038568,-350.0,0.00028493,5]
[420338488,1775997038581,-814.99534764,0.00028798,2]
[420338489,1775997038594,-651.39,0.00028864,2]
[420338490,1775997038604,-509.0,0.00028899,3]
[420338491,1775997038614,-450.0,0.00029041,5]
[420338492,1775997038630,-310.0,0.00029204,2]
[420338493,1775997038640,-1010.66460694,0.00029228,5]
[420338494,1775997038652,-1006.60935011,0.00029228,5]
[420338495,1775997038662,-1058.47038971,0.00029228,5]
[420338496,1775997038676,-972.30411745,0.00029228,5]
[420338497,1775997038686,-352.0831,0.000293,2]
[420338498,1775997038697,-1097.0,0.00029401,5]
[420338499,1775997038712,-4019.09367351,0.00029489,2]
[420338500,1775997038722,-2000.0,0.000295,2]
[420338501,1775997038731,-150.0,0.00029534,2]
[420338502,1775997038745,-150.0,0.00029589,60]
[420338503,1775997038760,-150.0,0.00029589,60]
[420338504,1775997038770,-212.16352892,0.00029589,60]
[420338505,1775997038784,-184.51547503,0.00029589,60]
[420338506,1775997038795,-500.0,0.00029589,60]
[420338507,1775997038809,-500.0,0.00029589,60]
[420338508,1775997038819,-602.0,0.00029589,60]
[420338509,1775997038831,-150.0,0.00029589,60]
[420338510,1775997038843,-150.0,0.00029589,60]
[420338511,1775997038853,-150.0,0.00029589,60]
[420338512,1775997038862,-293.49073325,0.00029589,60]
[420338513,1775997038875,-500.0,0.00029589,60]
[420338514,1775997038888,-500.0,0.00029589,60]
[420338515,1775997038900,-500.0,0.00029589,60]
[420338516,1775997038912,-500.0,0.00029589,60]
[420338517,1775997038922,-500.0,0.00029589,60]
[420338518,1775997038939,-500.0,0.00029589,60]
[420338519,1775997038949,-500.0,0.00029589,60]
[420338520,1775997038967,-500.0,0.00029589,60]
[420338521,1775997038980,-500.0,0.00029589,60]
[420338522,1775997038991,-500.0,0.00029589,60]
[420338523,1775997039004,-500.0,0.00029589,60]
[420338524,1775997039020,-500.0,0.00029589,60]
[420338525,1775997039029,-500.0,0.00029589,60]
[420338526,1775997039039,-500.0,0.00029589,60]
[420338527,1775997039056,-500.0,0.00029589,60]
[420338528,1775997039069,-298.0,0.00029589,60]
[420338529,1775997039098,-500.0,0.00029589,60]
[420338530,1775997039113,-500.0,0.00029589,60]
[420338531,1775997039123,-500.0,0.00029589,60]
[420338532,1775997039143,-500.0,0.00029589,60]
[420338533,1775997039162,-500.0,0.00029589,60]
[420338534,1775997039175,-500.0,0.00029589,60]
[420338535,1775997039197,-151.78459476,0.00029589,60]
[420338536,1775997039216,-597.58845964,0.00029589,5]
[420338537,1775997039233,-622.0,0.00029654,2]
[420338538,1775997039243,-1047.0,0.00029654,2]
[420338539,1775997039272,-200.0,0.0003013,2]
[420338540,1775997039301,-500.0,0.00030214,120]
[420338541,1775997039316,-500.0,0.00030214,120]
[420338542,1775997039350,-375.9667,0.000304,2]
[420338543,1775997039365,-200.0,0.00030431,2]
[420338544,1775997039398,-4019.09367343,0.00030554,2]
[420338545,1775997039415,-509.0,0.00030661,5]
[420338546,1775997039442,-200.0,0.00030736,2]
[420338547,1775997039459,-150.0,0.00031011,2]
[420338548,1775997039498,-500.0,0.00031036,120]
[420338549,1775997039524,-200.0,0.00031043,2]
[420338550,1775997039543,-401.4704,0.000316,2]
[420338551,1775997039565,-150.07,0.0003161,2]
[420338552,1775997039596,-4019.09367343,0.0003162,2]
[420338553,1775997039640,-500.0,0.00031781,120]
[420338554,1775997039681,-1582.0,0.0003192,3]
[420338555,1775997039693,-187.21,0.00031971,2]
[420338556,1775997039714,-923.01872247,0.00032,120]
[420338557,1775997039729,-1542.9830717,0.00032,120]
[420338558,1775997039739,-964.21649123,0.00032,120]
[420338559,1775997039752,-150.0,0.00032083,5]
[420338560,1775997039769,-500.0,0.00032103,120]
[420338561,1775997039778,-509.0,0.00032423,7]
[420338562,1775997039788,-5000.0,0.00032556,2]
[420338563,1775997039802,-150.0,0.00032562,2]
[420338564,1775997039820,-622.0,0.00032654,2]
[420338565,1775997039834,-500.0,0.00032685,120]
[420338566,1775997039845,-4019.09367343,0.00032685,2]
[420338567,1775997039864,-428.7042,0.000328,2]
[420338568,1775997039877,-156.0,0.00032825,30]
[420338569,1775997039887,-168.0,0.00032825,30]
[420338570,1775997039906,-295.0,0.00032825,30]
[420338571,1775997039919,-439.0,0.00032825,30]
[420338572,1775997039929,-724.0,0.00032825,30]
[420338573,1775997039946,-156.0,0.00032825,30]
[420338574,1775997039958,-240.0,0.00032825,30]
[420338575,1775997039967,-504.0,0.00032826,30]
[420338576,1775997039977,-343.0,0.00032826,30]
[420338577,1775997039996,-335.0,0.00032826,30]
[420338578,1775997040005,-1505.769,0.00032836,33]
[420338579,1775997040015,-169.216,0.00032836,33]
[420338580,1775997040029,-163.66,0.00032877,2]
[420338581,1775997040043,-163.65,0.00032877,2]
[420338582,1775997040052,-163.65,0.00032877,2]
[420338583,1775997040062,-163.65,0.00032877,2]
[420338584,1775997040079,-163.65,0.00032877,2]
[420338585,1775997040088,-163.65,0.00032877,2]
[420338586,1775997040097,-163.65,0.00032877,2]
[420338587,1775997040111,-163.65,0.00032877,2]
[420338588,1775997040121,-40577.17382425,0.0003299,2]
[420338589,1775997040130,-923.01872247,0.00033,120]
[420338590,1775997040141,-1542.9830717,0.00033,120]
[420338591,1775997040151,-964.21649123,0.00033,120]
[420338592,1775997040165,-150.0,0.00033,14]
[420338593,1775997040174,-1000.0,0.00033048,2]
[420338594,1775997040184,-1600.0,0.00033138,120]
[420338595,1775997040194,-150.07,0.0003319,2]
[420338596,1775997040208,-2000.0,0.000332,2]
[420338597,1775997040218,-642.87417317,0.00033224,2]
[420338598,1775997040227,-651.39,0.00033302,120]
[420338599,1775997040238,-500.0,0.00033425,120]
[420338600,1775997040250,-4019.09367343,0.00033751,2]
[420338601,1775997040261,-156.0,0.00033825,30]
[420338602,1775997040270,-295.0,0.00033825,30]
[420338603,1775997040281,-439.0,0.00033825,30]
[420338604,1775997040290,-724.0,0.00033825,30]
[420338605,1775997040300,-156.0,0.00033825,30]
[420338606,1775997040309,-240.0,0.00033825,30]
[420338607,1775997040318,-504.0,0.00033826,30]
[420338608,1775997040330,-343.0,0.00033826,30]
[420338609,1775997040340,-335.0,0.00033826,30]
[420338610,1775997040350,-923.01872247,0.000339,120]
[420338611,1775997040359,-1542.9830717,0.000339,120]
[420338612,1775997040370,-964.21649123,0.000339,120]
[420338613,1775997040379,-457.7853,0.00034,2]
[420338614,1775997040389,-509.0,0.00034185,9]
[420338615,1775997040404,-150.0,0.0003419,2]
[420338616,1775997040417,-150.0,0.000342,7]
[420338617,1775997040428,-500.0,0.00034247,10]
[420338618,1775997040438,-500.0,0.00034247,15]
[420338619,1775997040447,-500.0,0.00034247,15]
[420338620,1775997040461,-264.27769937,0.00034247,15]
[420338621,1775997040474,-500.0,0.00034247,15]
[420338622,1775997040483,-500.0,0.00034247,15]
[420338623,1775997040493,-500.0,0.00034251,60]
[420338624,1775997040506,-500.0,0.00034251,60]
[420338625,1775997040520,-774.0486029,0.00034251,60]
[420338626,1775997040529,-500.0,0.00034251,60]
[420338627,1775997040539,-500.0,0.00034251,60]
[420338628,1775997040557,-518.13574,0.00034251,60]
[420338629,1775997040567,-284.0762582,0.00034251,60]
[420338630,1775997040577,-500.0,0.00034251,60]
[420338631,1775997040595,-672.897884,0.00034251,60]
[420338632,1775997040604,-154.3585158,0.00034251,60]
[420338633,1775997040614,-500.0,0.00034251,60]
[420338634,1775997040626,-500.0,0.00034251,60]
[420338635,1775997040643,-936.0983847,0.00034251,60]
[420338636,1775997040654,-500.0,0.00034251,60]
[420338637,1775997040666,-501.4112039,0.00034251,60]
[420338638,1775997040687,-337.140148,0.00034251,60]
[420338639,1775997040697,-416.0628295,0.00034251,60]
[420338640,1775997040714,-500.0,0.00034251,60]
[420338641,1775997040730,-656.0350008,0.00034251,60]
[420338642,1775997040739,-298.0762764,0.00034251,60]
[420338643,1775997040756,-500.0,0.00034251,60]
[420338644,1775997040769,-500.0,0.00034251,60]
[420338645,1775997040779,-759.0492063,0.00034251,60]
[420338646,1775997040792,-500.0,0.00034356,120]
[420338647,1775997040809,-1000.0,0.00034498,2]
[420338648,1775997040819,-1000.0,0.00034521,2]
[420338649,1775997040828,-623.55595166,0.00034688,15]
[420338650,1775997040849,-1500.0,0.00034795,2]
[420338651,1775997040864,-4019.09367343,0.00034816,2]
[420338652,1775997040874,-156.0,0.00034825,30]
[420338653,1775997040901,-295.0,0.00034825,30]
[420338654,1775997040913,-439.0,0.00034825,30]
[420338655,1775997040933,-724.0,0.00034825,30]
[420338656,1775997040955,-156.0,0.00034825,30]
[420338657,1775997040967,-240.0,0.00034825,30]
[420338658,1775997040982,-504.0,0.00034826,30]
[420338659,1775997040999,-343.0,0.00034826,30]
[420338660,1775997041009,-335.0,0.00034826,30]
[420338661,1775997041023,-366.46,0.0003488,120]
[420338662,1775997041039,-471.22529856,0.00034917,2]
[420338663,1775997041049,-923.01872247,0.00035,120]
[420338664,1775997041061,-1542.9830717,0.00035,120]
[420338665,1775997041071,-964.21649123,0.00035,120]
[420338666,1775997041089,-14832.72,0.00035,120]
[420338667,1775997041099,-500.0,0.00035014,5]
[420338668,1775997041111,-488.8392,0.000351,2]
[420338669,1775997041123,-500.0,0.00035145,120]
[420338670,1775997041139,-151.0,0.00035339,14]
[420338671,1775997041153,-2000.0,0.00035792,120]
[420338672,1775997041169,-156.0,0.00035825,30]
[420338673,1775997041184,-295.0,0.00035825,30]
[420338674,1775997041198,-439.0,0.00035825,30]
[420338675,1775997041218,-724.0,0.00035825,30]
[420338676,1775997041233,-156.0,0.00035825,30]
[420338677,1775997041258,-240.0,0.00035825,30]
[420338678,1775997041290,-504.0,0.00035826,30]
[420338679,1775997041308,-343.0,0.00035826,30]
[420338680,1775997041346,-335.0,0.00035826,30]
[420338681,1775997041357,-2000.0,0.00035847,120]
[420338682,1775997041398,-4019.09367343,0.00035882,2]
[420338683,1775997041429,-150.0,0.00035899,2]
[420338684,1775997041447,-2000.0,0.00035901,120]
[420338685,1775997041460,-286.26522124,0.00035908,8]
[420338686,1775997041475,-150.07,0.00035937,2]
[420338687,1775997041488,-509.0,0.00035947,11]
[420338688,1775997041498,-2000.0,0.00035956,120]
[420338689,1775997041515,-500.0,0.00035967,120]
[420338690,1775997041535,-923.01872247,0.00036,120]
[420338691,1775997041545,-1542.9830717,0.00036,120]
[420338692,1775997041561,-964.21649123,0.00036,120]
[420338693,1775997041583,-2000.0,0.00036011,120]
[420338694,1775997041592,-2000.0,0.00036066,120]
[420338695,1775997041612,-2000.0,0.00036073,2]
[420338696,1775997041628,-1000.0,0.0003611,5]
[420338697,1775997041638,-2000.0,0.00036121,120]
[420338698,1775997041655,-2000.0,0.00036175,120]
[420338699,1775997041669,-2000.0,0.0003623,120]
[420338700,1775997041678,-2000.0,0.00036285,120]
[420338701,1775997041701,-162.0,0.000363,11]
[420338702,1775997041711,-521.9996,0.000363,2]
[420338703,1775997041722,-2000.0,0.0003634,120]
[420338704,1775997041749,-2000.0,0.00036395,120]
[420338705,1775997041759,-1000.0,0.00036415,7]
[420338706,1775997041780,-2000.0,0.00036449,120]
[420338707,1775997041806,-1600.0,0.00036452,120]
[420338708,1775997041822,-500.0,0.0003648,30]
[420338709,1775997041857,-500.0,0.0003648,30]
[420338710,1775997041897,-500.0,0.0003648,30]
[420338711,1775997041907,-330.68137783,0.0003648,30]
[420338712,1775997041931,-2000.0,0.00036504,120]
[420338713,1775997041941,-150.0,0.00036549,7]
[420338714,1775997041951,-2000.0,0.00036559,120]
[420338715,1775997041970,-2000.0,0.00036614,120]
[420338716,1775997041980,-2000.0,0.00036668,120]
[420338717,1775997041989,-150.0,0.00036686,7]
[420338718,1775997041999,-500.0,0.00036712,120]
[420338719,1775997042014,-2000.0,0.00036723,120]
[420338720,1775997042023,-1000.0,0.0003674,7]
[420338721,1775997042033,-539.73649678,0.00036744,2]
[420338722,1775997042042,-2000.0,0.00036778,120]
[420338723,1775997042057,-2000.0,0.000368,2]
[420338724,1775997042067,-156.0,0.00036825,30]
[420338725,1775997042076,-295.0,0.00036825,30]
[420338726,1775997042085,-439.0,0.00036825,30]
[420338727,1775997042094,-724.0,0.00036825,30]
[420338728,1775997042106,-156.0,0.00036825,30]
[420338729,1775997042115,-240.0,0.00036825,30]
[420338730,1775997042124,-504.0,0.00036826,30]
[420338731,1775997042133,-343.0,0.00036826,30]
[420338732,1775997042143,-335.0,0.00036826,30]
[420338733,1775997042152,-150.0,0.00036832,7]
[420338734,1775997042162,-2000.0,0.00036833,120]
[420338735,1775997042172,-150.0,0.00036835,7]
[420338736,1775997042181,-2000.0,0.00036888,120]
[420338737,1775997042191,-929.430532,0.00036902,5]
[420338738,1775997042200,-1000.0,0.00036929,7]
[420338739,1775997042209,-2000.0,0.00036942,120]
[420338740,1775997042219,-4019.09367343,0.00036947,2]
[420338741,1775997042228,-150.0,0.00036957,7]
[420338742,1775997042237,-151.0,0.00036987,14]
[420338743,1775997042246,-1080.12912529,0.00036997,120]
[420338747,1775997049391,-320.19592269,0.00025,10]
[420338748,1775997051896,-1348.0,0.00019543,2]
[420338749,1775997051921,-1347.0,0.00022543,2]
[420338750,1775997051941,-814.99534764,0.00031368,2]
[420338751,1775997051972,-814.99534764,0.00033938,2]
[420338752,1775997051991,-150.0,0.00034825,7]
[420338753,1775997052012,-70.24284797,0.00036825,30]
[420338754,1775997052036,-1152.75715203,0.00036825,30]
[420338755,1775997052047,-919.87087471,0.00036997,120]
[420338756,1775997052060,-1564.87,0.00036999,120]
[420338757,1775997052074,-1564.87,0.00036999,120]
[420338758,1775997052087,-1564.87,0.00036999,120]
[420338759,1775997052100,-1039.09905019,0.00036999,120]
[420338760,1775997052113,-525.77094981,0.00036999,120]
[420338761,1775997052124,-1564.87,0.00036999,120]
[420338762,1775997052133,-1564.87,0.00036999,120]
[420338763,1775997052147,-1564.87,0.00036999,120]
[420338764,1775997052157,-1564.87,0.00036999,120]
[420338765,1775997052171,-1564.87,0.00036999,120]
[420338766,1775997052180,-1243.73,0.00036999,120]
[420338767,1775997052193,-1564.87,0.00036999,120]
[420338768,1775997052203,-1564.87,0.00036999,120]
[420338769,1775997052216,-1564.87,0.00036999,120]
[420338770,1775997052226,-1564.87,0.00036999,120]
[420338771,1775997052236,-1564.87,0.00036999,120]
[420338772,1775997052245,-1564.87,0.00036999,120]
[420338773,1775997052256,-1564.87,0.00036999,120]
[420338774,1775997052265,-1564.87,0.00036999,120]
[420338775,1775997052275,-1564.87,0.00036999,120]
[420338776,1775997052285,-1000.0,0.00037,120]
[420338777,1775997052295,-2000.0,0.00037052,120]
[420338778,1775997052304,-187.21,0.00037057,2]
[420338779,1775997052314,-500.0,0.00037078,2]
[420338780,1775997052325,-2000.0,0.00037107,120]
[420338781,1775997052334,-150.0,0.00037153,7]
[420338782,1775997052344,-2000.0,0.00037162,120]
[420338783,1775997052354,-150.0,0.0003717,7]
[420338784,1775997052364,-1500.0,0.00037205,5]
[420338785,1775997052374,-2000.0,0.00037216,120]
[420338786,1775997052384,-150.0,0.0003723,7]
[420338787,1775997052393,-150.0,0.00037259,7]
[420338788,1775997052403,-152.85468521,0.00037265,7]
[420338789,1775997052413,-2000.0,0.00037271,120]
[420338790,1775997052424,-500.0,0.00037272,15]
[420338791,1775997052434,-2000.0,0.00037326,120]
[420338792,1775997052444,-1000.0,0.00037344,7]
[420338793,1775997052454,-150.0,0.00037358,7]
[420338794,1775997052464,-2000.0,0.00037381,120]
[420338795,1775997052473,-2000.0,0.00037436,120]
[420338796,1775997052483,-150.0,0.00037438,7]
[420338797,1775997052492,-1000.0,0.00037441,7]
[420338798,1775997052502,-150.0,0.00037464,7]
[420338799,1775997052515,-2000.0,0.0003749,120]
[420338800,1775997052525,-1000.0,0.00037496,7]
[420338801,1775997052534,-557.4094,0.000375,2]
[420338802,1775997052545,-173.61475,0.000375,91]
[420338803,1775997052556,-173.61476,0.000375,91]
[420338804,1775997052566,-173.61475,0.000375,91]
[420338805,1775997052576,-173.61475,0.000375,91]
[420338806,1775997052586,-250.0,0.00037507,45]
[420338807,1775997052600,-300.0,0.00037507,45]
[420338808,1775997052610,-150.0,0.00037519,7]
[420338809,1775997052620,-500.0,0.00037534,120]
[420338810,1775997052630,-150.0,0.00037545,60]
[420338811,1775997052645,-2000.0,0.00037545,120]
[420338812,1775997052655,-449.99999999,0.00037553,9]
[420338813,1775997052665,-10000.0,0.000376,2]
[420338814,1775997052675,-2000.0,0.000376,120]
[420338815,1775997052686,-648.54960364,0.0003762,30]
[420338816,1775997052696,-2000.0,0.00037655,120]
[420338817,1775997052709,-150.0,0.00037656,7]
[420338818,1775997052719,-4087.0,0.00037666,2]
[420338819,1775997052728,-150.0,0.00037694,2]
[420338820,1775997052739,-240.0,0.00037699,46]
[420338821,1775997052753,-151.0,0.00037699,7]
[420338822,1775997052763,-153.937522,0.00037699,7]
[420338823,1775997052773,-157.604722,0.00037699,7]
[420338824,1775997052783,-151.0,0.00037699,7]
[420338825,1775997052799,-151.0,0.00037699,7]
[420338826,1775997052809,-151.0,0.00037699,7]
[420338827,1775997052819,-1564.87,0.000377,120]
[420338828,1775997052830,-1564.87,0.000377,120]
[420338829,1775997052845,-1564.87,0.000377,120]
[420338830,1775997052855,-1564.88,0.000377,120]
[420338831,1775997052866,-1564.87,0.000377,120]
[420338832,1775997052883,-1564.82,0.000377,120]
[420338833,1775997052894,-1564.3,0.000377,120]
[420338834,1775997052906,-1564.87,0.000377,120]
[420338835,1775997052921,-1564.87,0.000377,120]
[420338836,1775997052935,-1564.87,0.000377,120]
[420338837,1775997052946,-1564.87,0.000377,120]
[420338838,1775997052958,-1564.87,0.000377,120]
[420338839,1775997052968,-1564.87,0.000377,120]
[420338840,1775997052980,-1564.46,0.000377,120]
[420338841,1775997052992,-1564.87,0.000377,120]
[420338842,1775997053007,-1564.87,0.000377,120]
[420338843,1775997053019,-1564.87,0.000377,120]
[420338844,1775997053029,-1564.87,0.000377,120]
[420338845,1775997053041,-1564.87,0.000377,120]
[420338846,1775997053053,-1564.87,0.000377,120]
[420338847,1775997053066,-1564.87,0.000377,120]
[420338848,1775997053080,-1564.87,0.000377,120]
[420338849,1775997053091,-1564.87,0.000377,120]
[420338850,1775997053104,-1564.87,0.000377,120]
[420338851,1775997053124,-1154.25,0.000377,120]
[420338852,1775997053137,-1564.87,0.000377,120]
[420338853,1775997053154,-1564.87,0.000377,120]
[420338854,1775997053171,-1564.82,0.000377,120]
[420338855,1775997053182,-1564.87,0.000377,120]
[420338856,1775997053215,-1564.87,0.000377,120]
[420338857,1775997053226,-1564.87,0.000377,120]